bitfinex-derivatives/quotes_SOLF0:USTF0_20241218
["timestamp","ask_amount","ask_price","bid_price","bid_amount"]
[1734527258194,2.3121,216.31,216.25,2.3127]
[1734527258599,2.3123,216.29,216.23,4.5329]
[1734527259301,2.22,216.32,216.24,2.3127]
[1734527259501,2.3122,216.3,216.24,2.3127]
[1734527259698,3.0373,216.39,216.24,18.08965812]
[1734527260004,5.52166709,216.36,216.24,18.08965812]
[1734527260502,5.52166709,216.36,216.32,2.3119]
[1734527260695,2.3115,216.37,216.32,2.3119]
[1734527260895,2.3115,216.37,216.28,2.22]
[1734527261098,2.3113,216.39,216.28,20.30965812]
[1734527261297,2.22,216.42,216.32,18.08965812]
[1734527261496,2.22,216.42,216.35,2.3115]
[1734527261907,2.22,216.42,216.32,18.08965812]
[1734527262506,2.22,216.42,216.33,1.5784]
[1734527262705,2.22,216.42,216.33,3.7984]
[1734527262906,4.531,216.42,216.36,2.3115]
[1734527263407,2.22,216.42,216.36,2.3115]
[1734527264407,2.311,216.41,216.36,2.3115]
[1734527265111,2.22,216.42,216.34,2.3117]
[1734527265699,2.22,216.42,216.33,3.7984]
[1734527265700,2.22,216.42,216.33,1.5784]
[1734527266104,2.22,216.42,216.29,2.24]
[1734527266811,2.3118,216.33,216.28,2.3123]
[1734527267110,2.3118,216.33,216.26,20.32965812]
[1734527267408,2.3118,216.33,216.26,18.08965812]
[1734527267610,2.3118,216.33,216.28,2.3123]
[1734527268009,2.3118,216.33,216.26,18.08965812]
[1734527268213,2.3118,216.33,216.27,2.3124]
[1734527268610,2.3117,216.34,216.26,20.40215812]
[1734527268810,2.24,216.37,216.26,18.08965812]
[1734527269212,2.3117,216.34,216.29,2.3122]
[1734527269612,2.24,216.38,216.26,18.08965812]
[1734527269915,2.3115,216.37,216.32,2.3119]
[1734527270113,2.24,216.42,216.3,2.24]
[1734527270413,2.24,216.42,216.29,2.24]
[1734527271918,2.24,216.42,216.26,18.08965812]
[1734527272817,1.4727,216.41,216.26,18.08965812]
[1734527273013,2.3121,216.31,216.26,20.40215812]
[1734527273512,2.24,216.35,216.26,18.08965812]
[1734527273713,2.24,216.35,216.23,3.7284]
[1734527273919,2.24,216.35,216.23,1.4884]
[1734527274110,2.24,216.35,216.23,3.8013]
[1734527275317,2.3123,216.29,216.23,3.8013]
[1734527275919,2.3124,216.28,216.23,3.8013]
[1734527276122,2.3124,216.28,216.23,1.4884]
[1734527276421,2.3125,216.27,216.23,1.4884]
[1734527277314,2.24,216.3,216.23,1.4884]
[1734527278111,2.24,216.3,216.23,12.78477909]
[1734527278716,11.29637909,216.37,216.23,12.78477909]
[1734527278921,2.24,216.36,216.27,11.29637909]
[1734527279219,2.24,216.35,216.27,11.29637909]
[1734527279619,2.24,216.35,216.24,13.53637909]
[1734527280116,13.53637909,216.35,216.23,1.4884]
[1734527280719,2.312,216.32,216.23,1.4884]
[1734527280921,13.53637909,216.35,216.23,1.4884]
[1734527281622,2.3127,216.26,216.21,3.8158]
[1734527281822,2.24,216.29,216.21,3.8158]
[1734527282317,2.3126,216.26,216.21,1.5027]
[1734527282521,1.4543,216.34,216.23,11.29637909]
[1734527282718,2.24,216.35,216.26,11.29637909]
[1734527283123,2.24,216.35,216.29,2.3121]
[1734527283124,2.3117,216.34,216.29,2.3121]
[1734527283517,12.75067909,216.42,216.29,11.29637909]
[1734527283721,2.3115,216.37,216.32,2.3119]
[1734527284218,2.24,216.41,216.32,2.3119]
[1734527285218,2.24,216.41,216.32,11.29637909]
[1734527285418,2.24,216.41,216.35,11.29637909]
[1734527285722,2.24,216.41,216.32,11.29637909]
[1734527287225,2.3112,216.39,216.33,2.3118]
[1734527288019,2.3112,216.39,216.34,2.3117]
[1734527288722,4.551,216.41,216.36,2.3114]
[1734527288927,2.311,216.41,216.36,2.3114]
[1734527289727,2.311,216.41,216.35,11.29637909]
[1734527289728,2.3108,216.43,216.35,13.53637909]
[1734527290027,2.24,216.47,216.38,11.29637909]
[1734527290222,2.24,216.48,216.42,2.3108]
[1734527290423,2.24,216.48,216.41,11.29637909]
[1734527290424,2.24,216.5,216.41,11.29637909]
[1734527290621,2.24,216.5,216.41,13.53637909]
[1734527290823,2.24,216.5,216.44,11.29637909]
[1734527291019,2.24,216.53,216.44,11.29637909]
[1734527291828,189.2422241,216.58,216.47,11.29637909]
[1734527292129,2.24,216.57,216.5,11.29637909]
[1734527292428,189.2422241,216.58,216.51,1.5321]
[1734527292625,0.6857,216.52,216.51,3.842]
[1734527292830,2.3091,216.59,216.51,3.842]
[1734527293320,2.24,216.6,216.51,1.5321]
[1734527293629,2.3094,216.56,216.51,1.5321]
[1734527294231,2.24,216.6,216.51,1.5321]
[1734527295639,2.3093,216.57,216.51,1.5321]
[1734527297532,2.3094,216.56,216.51,1.5321]
[1734527298340,2.3094,216.56,216.51,3.842]
[1734527298635,50.01544905,216.61,216.51,1.5321]
[1734527299538,2.3091,216.59,216.53,2.3097]
[1734527300237,2.24,216.62,216.51,1.5321]
[1734527300429,189.2422241,216.66,216.56,2.3093]
[1734527300430,2.3087,216.63,216.56,2.3093]
[1734527300730,189.2422241,216.66,216.55,2.24]
[1734527300938,2.24,216.65,216.54,2.24]
[1734527301130,2.24,216.65,216.55,18.03029838]
[1734527301626,205.5711241,216.77,216.55,18.03029838]
[1734527301627,2.24,216.68,216.55,18.03029838]
[1734527302436,2.22,216.7,216.55,18.03029838]
[1734527302636,2.22,216.7,216.59,18.03029838]
[1734527302938,2.22,216.7,216.6,5.2182]
[1734527303135,2.22,216.71,216.62,2.3087]
[1734527303338,2.22,216.71,216.61,1.5997]
[1734527303739,2.3078,216.71,216.64,2.3084]
[1734527304036,2.3078,216.71,216.63,18.03029838]
[1734527304738,19.49279838,216.82,216.63,18.03029838]
[1734527304937,2.22,216.81,216.63,18.03029838]
[1734527306133,5.57573346,216.8,216.67,18.03029838]
[1734527306337,2.22,216.84,216.71,18.03029838]
[1734527306537,2.22,216.83,216.72,4.6513]
[1734527306839,2.22,216.84,216.72,4.6513]
[1734527307041,2.3067,216.81,216.74,2.3073]
[1734527307536,2.3067,216.81,216.75,2.3073]
[1734527307736,2.3066,216.82,216.72,4.6513]
[1734527308038,2.22,216.84,216.72,4.6513]
[1734527308239,2.22,216.84,216.72,3.1388]
[1734527308437,18.03029838,216.83,216.63,18.03029838]
[1734527308637,18.03029838,216.83,216.65,2.3083]
[1734527308835,2.3076,216.73,216.63,18.03029838]
[1734527309234,2.3076,216.73,216.66,5.63356251]
[1734527309435,4.5274,216.74,216.66,5.63356251]
[1734527309736,18.03029838,216.83,216.67,20.25029838]
[1734527309939,2.22,216.82,216.67,20.25029838]
[1734527310235,2.3071,216.78,216.67,20.25029838]
[1734527310839,2.22,216.79,216.73,2.3075]
[1734527311233,2.22,216.79,216.67,20.25029838]
[1734527312039,5.68011172,216.85,216.71,18.03029838]
[1734527312237,2.22,216.84,216.72,6.7061]
[1734527312442,2.307,216.78,216.72,4.4861]
[1734527313241,2.3072,216.76,216.72,4.4861]
[1734527313448,2.22,216.79,216.72,4.4861]
[1734527314147,2.22,216.79,216.67,18.03029838]
[1734527314745,2.3076,216.73,216.67,18.03029838]
[1734527315753,2.3076,216.73,216.67,20.33839838]
[1734527316247,2.308,216.69,216.63,20.33879838]
[1734527316454,2.22,216.73,216.63,18.03029838]
[1734527316653,2.22,216.73,216.6,4.6527]
[1734527318351,2.3082,216.68,216.62,2.3087]
[1734527318654,4.5282,216.68,216.62,2.3087]
[1734527319457,2.3083,216.66,216.6,4.6527]
[1734527319855,4.5282,216.68,216.62,2.3087]
[1734527320058,4.5282,216.68,216.63,11.25414875]
[1734527320461,2.3083,216.67,216.63,11.25414875]
[1734527320852,2.22,216.68,216.63,13.56274875]
[1734527321150,2.22,216.68,216.63,11.25414875]
[1734527321351,13.9,216.82,216.66,11.25414875]
[1734527321352,2.22,216.74,216.66,11.25414875]
[1734527321549,2.22,216.74,216.69,11.25414875]
[1734527321753,2.3077,216.72,216.69,11.25414875]
[1734527321956,5.44383466,216.78,216.63,11.25414875]
[1734527321957,2.22,216.71,216.63,11.25414875]
[1734527322157,2.22,216.7,216.63,11.25414875]
[1734527322459,2.3084,216.65,216.63,11.25414875]
[1734527323458,2.22,216.7,216.6,15.90684875]
[1734527323660,2.3086,216.64,216.6,15.90684875]
[1734527323859,2.22,216.7,216.63,11.25414875]
[1734527324256,2.3083,216.67,216.63,11.25414875]
[1734527324551,2.22,216.71,216.66,11.25414875]
[1734527324751,2.308,216.69,216.66,11.25414875]
[1734527324955,2.26,216.7,216.63,11.25414875]
[1734527325156,2.3081,216.68,216.6,14.42114875]
[1734527325363,2.26,216.7,216.6,14.42114875]
[1734527325654,2.3084,216.66,216.6,14.42114875]
[1734527325959,2.26,216.67,216.6,16.73004875]
[1734527326350,2.26,216.67,216.6,14.42114875]
[1734527326555,2.3083,216.66,216.61,2.3088]
[1734527327960,21.5854,216.77,216.63,11.25414875]
[1734527328161,3.071,216.77,216.63,11.25414875]
[1734527328362,13.51414875,216.76,216.63,11.25414875]
[1734527329167,13.51414875,216.76,216.61,2.3088]
[1734527330069,11.25414875,216.73,216.6,12.82354875]
[1734527330561,2.3088,216.61,216.57,1.5978]
[1734527330761,2.26,216.63,216.57,1.5978]
[1734527331166,4.5687,216.63,216.57,3.907]
[1734527332768,2.26,216.66,216.61,11.25414875]
[1734527332969,2.26,216.66,216.58,12.83954875]
[1734527333769,2.3086,216.63,216.58,15.14854875]
[1734527333968,2.26,216.66,216.58,12.83954875]
[1734527334470,2.3086,216.64,216.59,2.309]
[1734527334968,220.78263262,216.77,216.58,12.83954875]
[1734527335167,11.25414875,216.75,216.61,11.25414875]
[1734527335566,11.25414875,216.75,216.63,2.3086]
[1734527336469,2.3081,216.68,216.63,2.3086]
[1734527336670,4.5681,216.68,216.63,2.3086]
[1734527337072,2.26,216.69,216.64,11.25414875]
[1734527337570,3.071,216.77,216.67,11.25414875]
[1734527337869,297.4616535,216.78,216.67,11.25414875]
[1734527337870,2.26,216.76,216.67,11.25414875]
[1734527338462,239.21781884,216.78,216.7,11.25414875]
[1734527338665,241.47781884,216.78,216.7,11.25414875]
[1734527338865,52.23559474,216.78,216.7,11.25414875]
[1734527339071,189.2422241,216.83,216.73,11.25414875]
[1734527339072,2.26,216.81,216.73,11.25414875]
[1734527339467,2.3069,216.8,216.74,2.3074]
[1734527340263,2.26,216.81,216.71,2.3077]
[1734527340264,2.3072,216.77,216.71,2.3077]
[1734527341265,2.26,216.81,216.7,11.25414875]
[1734527341266,2.3074,216.75,216.7,11.25414875]
[1734527342573,2.3074,216.75,216.7,13.56204875]
[1734527344568,2.3074,216.75,216.71,2.3077]
[1734527344766,2.3072,216.77,216.7,11.25414875]
[1734527345575,2.307,216.79,216.73,2.3075]
[1734527345777,2.307,216.79,216.7,11.25414875]
[1734527346378,2.26,216.81,216.7,11.25414875]
[1734527346577,2.307,216.78,216.7,11.25414875]
[1734527346873,5.43961778,216.83,216.76,11.25414875]
[1734527346874,2.26,216.83,216.76,11.25414875]
[1734527347077,4.5666,216.83,216.76,11.25414875]
[1734527347268,2.26,216.83,216.77,1.4908]
[1734527347572,3.24957,216.88,216.79,11.25414875]
[1734527347979,2.3062,216.86,216.79,11.25414875]
[1734527348176,14.50371875,216.88,216.78,1.4949]
[1734527348480,11.25414875,216.84,216.7,11.25414875]
[1734527348668,2.26,216.83,216.71,2.26]
[1734527348874,2.26,216.83,216.73,11.25414875]
[1734527349270,2.26,216.83,216.74,2.3074]
[1734527349470,2.26,216.83,216.72,1.509]
[1734527349670,2.3068,216.8,216.72,1.509]
[1734527349974,2.26,216.83,216.72,1.509]
[1734527350478,2.3073,216.76,216.72,1.509]
[1734527350669,2.26,216.83,216.72,3.8166]
[1734527350976,2.3071,216.77,216.72,1.509]
[1734527352569,2.3072,216.76,216.72,1.509]
[1734527352776,2.26,216.77,216.67,11.25414875]
[1734527353180,2.3077,216.72,216.67,11.25414875]
[1734527353474,2.26,216.71,216.49,4.6202]
[1734527353680,2.26,216.7,216.6,2.3088]
[1734527353879,2.26,216.69,216.6,5.40445985]
[1734527354081,2.3083,216.67,216.62,2.3087]
[1734527354378,2.26,216.69,216.6,5.40445985]
[1734527354584,11.25414875,216.75,216.6,5.40445985]
[1734527354880,2.3,216.74,216.62,2.3087]
[1734527355081,2.3,216.74,216.61,11.25414875]
[1734527355280,2.3081,216.68,216.63,2.3086]
[1734527355480,2.3,216.67,216.63,2.3086]
[1734527356077,4.6081,216.68,216.63,2.3086]
[1734527356782,2.3082,216.67,216.63,2.3086]
[1734527357781,2.3082,216.67,216.62,3.8521]
[1734527357989,2.3,216.68,216.62,1.5434]
[1734527358483,2.3083,216.67,216.63,2.3086]
[1734527359986,4.6083,216.67,216.63,2.3086]
[1734527360183,2.3081,216.69,216.62,1.5434]
[1734527360383,2.3,216.69,216.64,11.25414875]
[1734527360988,2.3,216.69,216.63,1.6089]
[1734527361484,2.3077,216.72,216.62,1.5434]
[1734527361789,2.3,216.71,216.62,1.5434]
[1734527362282,2.3083,216.67,216.62,1.5434]
[1734527362590,2.3,216.66,216.62,1.5434]
[1734527363083,16.78062902,216.75,216.62,1.5434]
[1734527363289,2.3,216.74,216.64,11.25414875]
[1734527363483,5.52648027,216.75,216.64,11.25414875]
[1734527363683,2.3,216.74,216.64,11.25414875]
[1734527363885,2.3078,216.71,216.66,2.3083]
[1734527364281,2.3,216.74,216.66,2.3083]
[1734527365387,13.9,216.84,216.68,11.25414875]
[1734527365586,14.28914875,216.84,216.68,11.25414875]
[1734527365786,2.3,216.83,216.69,3.0211]
[1734527366389,2.3,216.83,216.71,11.25414875]
[1734527366586,7.75362097,216.83,216.71,11.25414875]
[1734527366786,7.75362097,216.83,216.72,1.5418]
[1734527367188,2.3067,216.81,216.75,2.3072]
[1734527367882,2.3067,216.81,216.72,1.5418]
[1734527367883,2.3,216.83,216.72,1.5418]
[1734527368093,2.3,216.83,216.74,11.25414875]
[1734527368686,2.3,216.83,216.77,2.307]
[1734527369286,2.3,216.83,216.76,2.3072]
[1734527369486,2.3,216.83,216.74,11.25414875]
[1734527369887,2.3,216.83,216.77,2.307]
[1734527370285,4.6065,216.83,216.77,2.307]
[1734527370890,2.3,216.83,216.79,2.3069]
[1734527373492,4.6065,216.83,216.78,2.307]
[1734527373697,2.3,216.83,216.74,13.55414875]
[1734527374100,2.3066,216.82,216.77,2.307]
[1734527374901,2.3,216.83,216.74,11.25414875]
[1734527375696,2.3,216.83,216.74,16.75182856]
[1734527376497,2.3067,216.81,216.76,2.3071]
[1734527377702,2.3,216.83,216.75,2.3073]
[1734527377703,2.3068,216.8,216.75,2.3073]
[1734527378105,2.3,216.83,216.75,2.3073]
[1734527378302,2.3071,216.78,216.73,2.3074]
[1734527378598,2.3,216.78,216.72,1.5418]
[1734527379100,2.3072,216.77,216.72,3.8494]
[1734527379602,2.3,216.78,216.72,3.8494]
[1734527379603,2.3072,216.76,216.72,3.8494]
[1734527379803,2.3,216.78,216.72,3.8494]
[1734527380327,2.3072,216.76,216.72,3.8494]
[1734527382309,4.607,216.78,216.74,2.3074]
[1734527382508,2.3,216.78,216.72,1.5418]
[1734527382709,11.25414875,216.85,216.72,1.5418]
[1734527382904,2.3,216.84,216.72,1.5418]
[1734527383609,2.3069,216.8,216.72,1.5418]
[1734527384006,2.3,216.84,216.72,1.5418]
[1734527384207,2.3069,216.79,216.75,2.3072]
[1734527384408,2.3,216.84,216.72,1.5418]
[1734527384706,2.3068,216.81,216.72,3.8494]
[1734527385009,2.3,216.84,216.72,1.5418]
[1734527386009,2.3072,216.77,216.72,3.8494]
[1734527386209,2.3072,216.77,216.72,1.5418]
[1734527386812,2.24,216.79,216.73,2.3075]
[1734527387013,2.3072,216.76,216.73,2.3075]
[1734527389216,2.3071,216.77,216.74,2.3074]
[1734527389513,2.24,216.79,216.73,11.25414875]
[1734527389716,2.3068,216.8,216.77,2.3071]
[1734527389909,15.86614875,216.88,216.73,11.25414875]
[1734527390109,196.26014872,216.91,216.72,3.7818]
[1734527390309,58.78,217.03,216.81,11.25414875]
[1734527390310,2.24,216.9,216.81,11.25414875]
[1734527391115,2.24,216.9,216.82,1.5175]
[1734527391415,2.306,216.88,216.83,2.3065]
[1734527391910,2.3061,216.87,216.82,3.8241]
[1734527393523,2.306,216.88,216.83,2.3065]
[1734527393712,2.24,216.9,216.83,2.3065]
[1734527393912,2.24,216.9,216.82,1.5175]
[1734527395213,2.3062,216.87,216.82,1.5175]
[1734527396010,2.3062,216.87,216.82,3.8241]
[1734527398920,2.24,216.9,216.82,1.5175]
[1734527399125,2.24,216.9,216.84,2.3063]
[1734527399528,2.3058,216.9,216.84,11.25414875]
[1734527399726,2.24,216.93,216.84,11.25414875]
[1734527400220,2.3059,216.89,216.84,2.3063]
[1734527400421,2.24,216.93,216.82,1.5175]
[1734527400825,2.3061,216.87,216.83,2.3065]
[1734527401224,11.25414875,216.92,216.82,1.5175]
[1734527401425,11.25414875,216.92,216.82,3.8241]
[1734527402030,2.3061,216.87,216.82,3.8241]
[1734527402938,2.3062,216.86,216.82,1.5175]
[1734527404227,2.3067,216.82,216.78,1.5321]
[1734527404429,2.24,216.83,216.75,11.25414875]
[1734527404628,2.24,216.83,216.72,16.59424875]
[1734527404932,2.24,216.83,216.73,2.3075]
[1734527405925,2.307,216.78,216.73,2.3075]
[1734527406232,2.24,216.78,216.72,1.4954]
[1734527407434,2.3073,216.75,216.72,1.4954]
[1734527408128,2.24,216.78,216.72,1.4954]
[1734527408332,2.24,216.78,216.69,11.25414875]
[1734527409437,2.3075,216.74,216.69,13.56204875]
[1734527409629,2.24,216.78,216.69,11.25414875]
[1734527410029,2.3074,216.75,216.7,2.3079]
[1734527410834,2.3077,216.72,216.69,11.25414875]
[1734527411636,2.3075,216.74,216.69,13.56204875]
[1734527411834,2.24,216.78,216.69,13.56204875]
[1734527412035,2.24,216.78,216.69,11.25414875]
[1734527412235,2.3074,216.75,216.71,2.3077]
[1734527412533,2.24,216.78,216.69,11.25414875]
[1734527413531,2.3075,216.74,216.7,2.3078]
[1734527413839,2.24,216.78,216.69,11.25414875]
[1734527414035,2.3073,216.76,216.69,13.56214875]
[1734527414238,2.24,216.78,216.69,13.56214875]
[1734527415141,1.5697,216.82,216.69,11.25414875]
[1734527415342,2.2,216.81,216.69,11.25414875]
[1734527415545,2.2,216.81,216.72,11.25414875]
[1734527415740,2.3071,216.77,216.73,2.3075]
[1734527415940,2.3071,216.77,216.75,7.19676832]
[1734527416341,2.3072,216.76,216.75,7.19676832]
[1734527416841,2.3068,216.8,216.75,9.50406832]
[1734527417241,2.2,216.81,216.75,7.19676832]
[1734527417841,2.307,216.79,216.75,9.50406832]
[1734527418042,2.307,216.79,216.75,2.3073]
[1734527419535,2.3067,216.81,216.75,11.243826]
[1734527419738,2.2,216.82,216.76,1.5138]
[1734527420135,2.3068,216.81,216.76,3.821]
[1734527421542,2.2,216.82,216.76,1.5138]
[1734527421744,2.2,216.82,216.73,3.0455]
[1734527422341,2.307,216.79,216.74,2.3074]
[1734527422542,2.2,216.82,216.74,2.3074]
[1734527423340,2.2,216.82,216.73,3.0455]
[1734527423341,2.2,216.82,216.7,2.2]
[1734527423540,2.2,216.82,216.69,12.735926]
[1734527423736,2.3074,216.75,216.69,12.735926]
[1734527423940,2.3074,216.75,216.7,2.3078]
[1734527424135,2.3074,216.75,216.69,12.735926]
[1734527424438,2.2,216.77,216.69,12.735926]
[1734527424641,2.3072,216.76,216.69,12.735926]
[1734527425245,2.3072,216.76,216.72,2.3076]
[1734527425744,2.2,216.78,216.7,2.3078]
[1734527426445,2.3075,216.74,216.7,2.3078]
[1734527426640,2.3075,216.74,216.69,12.735926]
[1734527426837,2.3075,216.74,216.71,2.3077]
[1734527429338,2.3075,216.74,216.69,12.735926]
[1734527429537,2.3075,216.74,216.72,2.3076]
[1734527430345,2.2,216.78,216.74,2.3074]
[1734527430748,2.3071,216.78,216.72,11.243826]
[1734527431946,2.3071,216.78,216.75,2.3072]
[1734527432146,2.3069,216.8,216.73,1.5224]
[1734527433146,2.307,216.79,216.73,1.5224]
[1734527433348,2.307,216.79,216.76,2.3072]
[1734527433543,2.2,216.81,216.73,1.5224]
[1734527433748,2.3071,216.78,216.74,2.3073]
[1734527434848,2.3072,216.76,216.73,3.8299]
[1734527435043,2.2,216.81,216.69,18.25507732]
[1734527435450,2.3074,216.74,216.71,2.3077]
[1734527435948,2.2,216.81,216.69,18.25507732]
[1734527436446,2.2,216.81,216.72,11.243826]
[1734527437047,2.307,216.79,216.74,2.3074]
[1734527437241,2.2,216.81,216.74,2.3074]
[1734527438250,2.2,216.81,216.69,18.25507732]
[1734527438456,7.19930126,216.78,216.7,7.19930126]
[1734527438650,7.19930126,216.78,216.69,7.01125132]
[1734527438651,7.19930126,216.76,216.69,1.4921]
[1734527438849,2.3078,216.71,216.67,9.50750126]
[1734527439047,7.19930126,216.72,216.65,7.19930126]
[1734527439351,2.3082,216.68,216.65,7.19930126]
[1734527439943,2.3082,216.68,216.64,1.5843]
[1734527441049,2.2,216.71,216.64,1.5843]
[1734527441449,2.2,216.71,216.59,11.25468312]
[1734527441644,2.3089,216.61,216.56,11.25468312]
[1734527442252,2.3089,216.61,216.56,13.56398312]
[1734527442456,2.2,216.65,216.55,6.8324]
[1734527442652,2.2,216.65,216.55,1.5159]
[1734527442955,2.3094,216.56,216.5,15.76468312]
[1734527443152,2.2,216.59,216.5,13.45468312]
[1734527443352,2.2,216.58,216.5,11.25468312]
[1734527443550,11.25468312,216.64,216.5,11.25468312]
[1734527443551,2.2,216.57,216.5,13.56468312]
[1734527444551,11.25468312,216.64,216.5,11.25468312]
[1734527444753,11.25468312,216.67,216.53,11.25468312]
[1734527444946,2.2,216.66,216.54,4.5667]
[1734527445151,2.3087,216.62,216.54,4.5667]
[1734527446457,2.3087,216.62,216.57,2.3092]
[1734527447657,4.5086,216.63,216.58,2.3091]
[1734527447858,2.2,216.63,216.56,11.25468312]
[1734527448058,2.2,216.66,216.56,11.25468312]
[1734527448356,2.2,216.66,216.57,2.3092]
[1734527448557,2.2,216.66,216.54,4.5667]
[1734527449059,11.25468312,216.64,216.54,3.0506]
[1734527450554,2.3092,216.58,216.54,3.0506]
[1734527450764,4.5092,216.58,216.54,3.0506]
[1734527451163,2.3093,216.57,216.54,3.0506]
[1734527451764,2.2,216.58,216.54,3.0506]
[1734527451960,2.2,216.61,216.54,3.0506]
[1734527452562,2.309,216.6,216.55,2.3094]
[1734527452763,2.2,216.61,216.54,3.0506]
[1734527453165,2.2,216.61,216.56,2.3093]
[1734527453362,2.2,216.61,216.54,3.0506]
[1734527453565,2.2,216.64,216.54,3.0506]
[1734527453767,2.2,216.64,216.55,2.2]
[1734527454267,2.2,216.63,216.55,2.2]
[1734527455558,2.3087,216.62,216.55,2.2]
[1734527456468,2.2,216.63,216.55,2.2]
[1734527456669,2.2,216.63,216.54,3.0506]
[1734527457469,2.3091,216.59,216.54,5.3601]
[1734527460274,2.3088,216.61,216.57,2.3092]
[1734527460471,2.2,216.63,216.54,3.0506]
[1734527461366,4.5087,216.63,216.58,2.3091]
[1734527461574,2.2,216.63,216.58,2.3091]
[1734527461977,11.25468312,216.7,216.56,11.25468312]
[1734527462169,2.2,216.69,216.57,2.2]
[1734527463477,2.3083,216.66,216.62,2.3086]
[1734527463776,2.2,216.69,216.59,11.25468312]
[1734527464077,2.2,216.69,216.63,2.3085]
[1734527464773,2.3082,216.67,216.62,2.3087]
[1734527464968,2.2,216.69,216.6,1.5276]
[1734527465278,2.2,216.69,216.56,13.45468312]
[1734527465673,2.2,216.69,216.59,2.309]
[1734527466176,11.82962312,216.7,216.56,11.25468312]
[1734527466378,2.2,216.69,216.59,11.25468312]
[1734527466676,4.5081,216.69,216.64,2.3085]
[1734527467278,2.3081,216.68,216.64,2.3085]
[1734527467580,2.2,216.69,216.64,2.3085]
[1734527468579,4.5081,216.69,216.64,2.3085]
[1734527469075,4.5081,216.69,216.65,2.3084]
[1734527469475,0.57494,216.7,216.65,2.3084]
[1734527469674,0.57494,216.7,216.67,2.3081]
[1734527470177,0.57494,216.7,216.66,2.3083]
[1734527470378,0.57494,216.7,216.63,3.0588]
[1734527470379,2.88294,216.7,216.63,3.0588]
[1734527470571,0.57494,216.7,216.65,11.25468312]
[1734527470777,32.51737995,216.84,216.72,2.3076]
[1734527470778,2.2,216.76,216.72,2.3076]
[1734527470978,2.2,216.78,216.68,11.25468312]
[1734527471373,11.25468312,216.82,216.68,11.25468312]
[1734527471580,2.2,216.81,216.71,11.25468312]
[1734527472085,2.3068,216.8,216.75,2.3073]
[1734527472883,2.3069,216.79,216.75,2.3073]
[1734527473183,2.3069,216.79,216.71,11.25468312]
[1734527473382,2.3069,216.79,216.74,2.3074]
[1734527473876,2.2,216.81,216.71,2.3077]
[1734527474273,2.3072,216.77,216.71,2.3077]
[1734527474478,2.2,216.81,216.71,2.3077]
[1734527474684,2.2,216.81,216.72,2.3076]
[1734527474882,2.3072,216.77,216.72,2.3076]
[1734527476288,2.2,216.81,216.69,1.5202]
[1734527477589,2.3074,216.75,216.7,2.3078]
[1734527478388,11.25468312,216.82,216.69,2.308]
[1734527478583,11.25468312,216.79,216.65,11.25468312]
[1734527478986,11.25468312,216.79,216.69,2.3079]
[1734527479186,3.7285,216.81,216.68,11.25468312]
[1734527479581,2.3071,216.78,216.71,2.3077]
[1734527479789,1.5285,216.81,216.68,11.25468312]
[1734527480081,2.2,216.8,216.68,11.25468312]
[1734527480680,2.2,216.8,216.71,11.25468312]
[1734527481189,4.5068,216.8,216.75,2.3073]
[1734527481486,2.2,216.8,216.75,2.3073]
[1734527481683,2.3066,216.83,216.74,11.25468312]
[1734527481988,2.3066,216.83,216.78,2.307]
[1734527482386,2.3064,216.84,216.79,2.3069]